[Event "Titled Tuesday Blitz May 03 Early 2022"]
[White "Oganian, Miran"]
[Black "Bortnyk, Olexandr"]
[WhiteFideId "4122488"]
[BlackFideId "14120828"]
[WhiteElo "2357"]
[BlackElo "2723"]
[Result "0-1"]
[Round "09"]
[TimeControl "180+1"]
[Date "2022.05.03"]
[WhiteClock "0:00:05"]
[BlackClock "0:00:10"]

1. e4 {[%clk 0:02:59]}  Nf6 {[%clk 0:02:46]} 2. Nc3 {[%clk 0:02:52]}  d5 {[%clk 0:02:46]} 3. e5 {[%clk 0:02:44]}  Nfd7 {[%clk 0:02:42]} 4. d4 {[%clk 0:02:42]}  c5 {[%clk 0:02:25]} 5. f4 {[%clk 0:02:32]}  cxd4 {[%clk 0:02:25]} 6. Qxd4 {[%clk 0:02:32]}  e6 {[%clk 0:02:25]} 7. Nf3 {[%clk 0:02:32]}  Bc5 {[%clk 0:02:25]} 8. Qd3 {[%clk 0:02:24]}  Nc6 {[%clk 0:02:26]} 9. a3 {[%clk 0:02:19]}  a6 {[%clk 0:02:21]} 10. Be3 {[%clk 0:02:18]}  Qb6 {[%clk 0:02:15]} 11. Na4 {[%clk 0:02:12]}  Qa5+ {[%clk 0:02:15]} 12. b4 {[%clk 0:02:00]}  Qxa4 {[%clk 0:01:50]} 13. bxc5 {[%clk 0:02:00]}  Nb4 {[%clk 0:01:50]} 14. axb4 {[%clk 0:01:55]}  Qxa1+ {[%clk 0:01:51]} 15. Kf2 {[%clk 0:01:55]}  Qb2 {[%clk 0:01:13]} 16. Bd2 {[%clk 0:01:46]}  a5 {[%clk 0:01:11]} 17. Bc3 {[%clk 0:01:10]}  Qc1 {[%clk 0:01:10]} 18. Bd2 {[%clk 0:01:06]}  Qb2 {[%clk 0:01:10]} 19. Bc3 {[%clk 0:01:06]}  Qa3 {[%clk 0:00:58]} 20. Be2 {[%clk 0:01:05]}  axb4 {[%clk 0:00:50]} 21. Ra1 {[%clk 0:01:05]}  Qxc3 {[%clk 0:00:32]} 22. Qxc3 {[%clk 0:01:01]}  bxc3 {[%clk 0:00:33]} 23. Rxa8 {[%clk 0:01:01]}  O-O {[%clk 0:00:34]} 24. Ra5 {[%clk 0:00:40]}  f6 {[%clk 0:00:34]} 25. Ke3 {[%clk 0:00:34]}  fxe5 {[%clk 0:00:33]} 26. fxe5 {[%clk 0:00:34]}  g5 {[%clk 0:00:31]} 27. h3 {[%clk 0:00:32]}  h5 {[%clk 0:00:28]} 28. g4 {[%clk 0:00:18]}  hxg4 {[%clk 0:00:29]} 29. hxg4 {[%clk 0:00:19]}  Kg7 {[%clk 0:00:29]} 30. Ra8 {[%clk 0:00:11]}  Kh6 {[%clk 0:00:21]} 31. Ra3 {[%clk 0:00:10]}  Nxc5 {[%clk 0:00:21]} 32. Rxc3 {[%clk 0:00:10]}  b6 {[%clk 0:00:20]} 33. Ra3 {[%clk 0:00:10]}  Bb7 {[%clk 0:00:19]} 34. Ra1 {[%clk 0:00:10]}  Rf4 {[%clk 0:00:12]} 35. Rh1+ {[%clk 0:00:07]}  Kg6 {[%clk 0:00:12]} 36. Nh4+ {[%clk 0:00:07]}  Kg7 {[%clk 0:00:12]} 37. Nf3 {[%clk 0:00:07]}  d4+ {[%clk 0:00:12]} 38. Kf2 {[%clk 0:00:05]}  Ne4+ {[%clk 0:00:13]} 39. Ke1 {[%clk 0:00:04]}  Ng3 {[%clk 0:00:13]} 40. Rh3 {[%clk 0:00:03]}  Nxe2 {[%clk 0:00:09]} 41. Kxe2 {[%clk 0:00:03]}  Bxf3+ {[%clk 0:00:08]} 42. Rxf3 {[%clk 0:00:04]}  Rxg4 {[%clk 0:00:09]} 43. Kd3 {[%clk 0:00:04]}  Rf4 {[%clk 0:00:09]} 44. Rg3 {[%clk 0:00:03]}  Kg6 {[%clk 0:00:10]} 45. Rg1 {[%clk 0:00:03]}  Kf5 {[%clk 0:00:10]} 46. Rb1 {[%clk 0:00:03]}  Kxe5 {[%clk 0:00:09]} 47. Rxb6 {[%clk 0:00:04]}  Rf3+ {[%clk 0:00:10]} 48. Ke2 {[%clk 0:00:04]}  g4 {[%clk 0:00:10]} 49. Rb8 {[%clk 0:00:04]}  Re3+ {[%clk 0:00:10]} 50. Kf2 {[%clk 0:00:04]}  Rc3 {[%clk 0:00:11]} 51. Rb5+ {[%clk 0:00:04]}  Kf4 {[%clk 0:00:10]} 52. Rc5 {[%clk 0:00:05]}  Rxc5 {[%clk 0:00:10]} 0-1


[Site "https://www.chess.com"]

[Event "Titled Tuesday Blitz May 03 Early 2022"]
[White "Omariev, Maksim"]
[Black "Shyaamnikhil P"]
[WhiteFideId "4193423"]
[BlackFideId "5024218"]
[WhiteElo "2511"]
[BlackElo "2329"]
[Result "1-0"]
[Round "09"]
[TimeControl "180+1"]
[Date "2022.05.03"]
[WhiteClock "0:00:04"]
[BlackClock "0:00:17"]

1. e4 {[%clk 0:03:00]}  c5 {[%clk 0:02:59]} 2. Nf3 {[%clk 0:03:01]}  d6 {[%clk 0:02:59]} 3. d4 {[%clk 0:03:01]}  cxd4 {[%clk 0:03:00]} 4. Nxd4 {[%clk 0:03:02]}  Nf6 {[%clk 0:03:01]} 5. Nc3 {[%clk 0:03:02]}  a6 {[%clk 0:03:01]} 6. h3 {[%clk 0:03:02]}  e5 {[%clk 0:03:00]} 7. Nde2 {[%clk 0:03:02]}  b5 {[%clk 0:02:58]} 8. g4 {[%clk 0:03:03]}  Bb7 {[%clk 0:02:58]} 9. Bg2 {[%clk 0:03:03]}  b4 {[%clk 0:02:58]} 10. Nd5 {[%clk 0:02:43]}  Nxd5 {[%clk 0:02:56]} 11. exd5 {[%clk 0:02:44]}  h5 {[%clk 0:02:56]} 12. Be3 {[%clk 0:02:40]}  hxg4 {[%clk 0:02:54]} 13. hxg4 {[%clk 0:02:41]}  Rxh1+ {[%clk 0:02:55]} 14. Bxh1 {[%clk 0:02:42]}  a5 {[%clk 0:02:55]} 15. Qd2 {[%clk 0:02:40]}  Nd7 {[%clk 0:02:52]} 16. O-O-O {[%clk 0:02:34]}  Ba6 {[%clk 0:02:46]} 17. Kb1 {[%clk 0:02:16]}  a4 {[%clk 0:02:22]} 18. Ng3 {[%clk 0:01:56]}  b3 {[%clk 0:02:06]} 19. cxb3 {[%clk 0:01:57]}  axb3 {[%clk 0:02:05]} 20. a3 {[%clk 0:01:57]}  Nf6 {[%clk 0:01:54]} 21. Bf3 {[%clk 0:01:53]}  Qd7 {[%clk 0:01:44]} 22. Qb4 {[%clk 0:01:42]}  Qb5 {[%clk 0:01:39]} 23. Qd2 {[%clk 0:01:23]}  Rc8 {[%clk 0:01:29]} 24. Be2 {[%clk 0:01:09]}  Qa4 {[%clk 0:01:27]} 25. Bxa6 {[%clk 0:00:53]}  Qxa6 {[%clk 0:01:28]} 26. f3 {[%clk 0:00:47]}  Qc4 {[%clk 0:01:16]} 27. g5 {[%clk 0:00:24]}  Qc2+ {[%clk 0:01:09]} 28. Ka1 {[%clk 0:00:21]}  Qxd2 {[%clk 0:01:07]} 29. Bxd2 {[%clk 0:00:19]}  Nxd5 {[%clk 0:01:07]} 30. Ne4 {[%clk 0:00:15]}  Kd7 {[%clk 0:01:07]} 31. Kb1 {[%clk 0:00:09]}  Ke6 {[%clk 0:01:05]} 32. Bc1 {[%clk 0:00:08]}  f5 {[%clk 0:00:31]} 33. gxf6 {[%clk 0:00:09]}  gxf6 {[%clk 0:00:31]} 34. Rd3 {[%clk 0:00:10]}  f5 {[%clk 0:00:31]} 35. Ng5+ {[%clk 0:00:10]}  Kf6 {[%clk 0:00:29]} 36. Rxd5 {[%clk 0:00:10]}  Bh6 {[%clk 0:00:24]} 37. Rxd6+ {[%clk 0:00:09]}  Kg7 {[%clk 0:00:24]} 38. Rd7+ {[%clk 0:00:05]}  Kg6 {[%clk 0:00:24]} 39. Rd6+ {[%clk 0:00:04]}  Kh5 {[%clk 0:00:24]} 40. Bd2 {[%clk 0:00:03]}  Bxg5 {[%clk 0:00:23]} 41. Bxg5 {[%clk 0:00:03]}  Kxg5 {[%clk 0:00:24]} 42. Rb6 {[%clk 0:00:02]}  Kf4 {[%clk 0:00:20]} 43. Rxb3 {[%clk 0:00:03]}  Rc4 {[%clk 0:00:21]} 44. Ka2 {[%clk 0:00:03]}  e4 {[%clk 0:00:18]} 45. fxe4 {[%clk 0:00:03]}  fxe4 {[%clk 0:00:19]} 46. Rh3 {[%clk 0:00:03]}  Kg4 {[%clk 0:00:19]} 47. Rh8 {[%clk 0:00:03]}  e3 {[%clk 0:00:19]} 48. Re8 {[%clk 0:00:04]}  Kf3 {[%clk 0:00:20]} 49. b4 {[%clk 0:00:04]}  Re4 {[%clk 0:00:18]} 50. Rf8+ {[%clk 0:00:04]}  Kg2 {[%clk 0:00:18]} 51. Rg8+ {[%clk 0:00:04]}  Kh2 {[%clk 0:00:18]} 52. Rh8+ {[%clk 0:00:04]}  Kg3 {[%clk 0:00:18]} 53. Rg8+ {[%clk 0:00:05]}  Kf2 {[%clk 0:00:19]} 54. Rf8+ {[%clk 0:00:05]}  Ke2 {[%clk 0:00:18]} 55. Kb3 {[%clk 0:00:05]}  Kd2 {[%clk 0:00:17]} 56. Rd8+ {[%clk 0:00:04]}  Kc1 {[%clk 0:00:17]} 57. Rh8 {[%clk 0:00:04]}  Kb1 {[%clk 0:00:17]} 58. Rh1# {[%clk 0:00:04]} 1-0


[Site "https://www.chess.com"]

[Event "Titled Tuesday Blitz May 03 Early 2022"]
[White "Ovezdurdyyeva, Jemal"]
[Black "Miszler, Levente"]
[WhiteFideId "14001888"]
[BlackFideId "763276"]
[WhiteElo "1946"]
[BlackElo "1966"]
[Result "0-1"]
[Round "09"]
[TimeControl "180+1"]
[Date "2022.05.03"]
[WhiteClock "0:01:09"]
[BlackClock "0:01:03"]

1. e4 {[%clk 0:03:00]}  e6 {[%clk 0:02:58]} 2. d4 {[%clk 0:02:59]}  d5 {[%clk 0:02:59]} 3. Nd2 {[%clk 0:03:00]}  f5 {[%clk 0:02:57]} 4. exf5 {[%clk 0:02:51]}  exf5 {[%clk 0:02:58]} 5. Bd3 {[%clk 0:02:51]}  Nf6 {[%clk 0:02:57]} 6. Ne2 {[%clk 0:02:49]}  Bd6 {[%clk 0:02:56]} 7. c3 {[%clk 0:02:48]}  O-O {[%clk 0:02:56]} 8. Qc2 {[%clk 0:02:48]}  Ne4 {[%clk 0:02:56]} 9. Nb3 {[%clk 0:02:43]}  c6 {[%clk 0:02:50]} 10. g3 {[%clk 0:02:41]}  Nd7 {[%clk 0:02:39]} 11. Be3 {[%clk 0:02:41]}  Ndf6 {[%clk 0:02:38]} 12. O-O-O {[%clk 0:02:39]}  Ng4 {[%clk 0:02:36]} 13. Rdf1 {[%clk 0:02:26]}  Nxe3 {[%clk 0:02:34]} 14. fxe3 {[%clk 0:02:27]}  Bd7 {[%clk 0:02:31]} 15. Nf4 {[%clk 0:02:16]}  a5 {[%clk 0:02:26]} 16. Nd2 {[%clk 0:02:16]}  b5 {[%clk 0:02:25]} 17. Nxe4 {[%clk 0:02:13]}  fxe4 {[%clk 0:02:26]} 18. Be2 {[%clk 0:02:14]}  a4 {[%clk 0:02:21]} 19. Qd1 {[%clk 0:02:11]}  Qb6 {[%clk 0:02:16]} 20. Bg4 {[%clk 0:02:11]}  Bxg4 {[%clk 0:02:13]} 21. Qxg4 {[%clk 0:02:12]}  Bxf4 {[%clk 0:01:42]} 22. gxf4 {[%clk 0:02:08]}  b4 {[%clk 0:01:42]} 23. Rhg1 {[%clk 0:02:05]}  Rf7 {[%clk 0:01:41]} 24. cxb4 {[%clk 0:01:59]}  Qxb4 {[%clk 0:01:38]} 25. Qe2 {[%clk 0:01:36]}  c5 {[%clk 0:01:25]} 26. dxc5 {[%clk 0:01:33]}  Rc7 {[%clk 0:01:22]} 27. Kb1 {[%clk 0:01:33]}  Rxc5 {[%clk 0:01:20]} 28. Qg2 {[%clk 0:01:26]}  Rc7 {[%clk 0:01:15]} 29. Qg5 {[%clk 0:01:20]}  Qc4 {[%clk 0:01:08]} 30. Qe5 {[%clk 0:01:17]}  Rac8 {[%clk 0:01:05]} 31. Rd1 {[%clk 0:01:09]}  Qc2+ {[%clk 0:01:03]} 32. Ka1 {[%clk 0:01:08]}  Qc1+ {[%clk 0:01:03]} 33. Rxc1 {[%clk 0:01:08]}  Rxc1+ {[%clk 0:01:03]} 34. Rxc1 {[%clk 0:01:09]}  Rxc1# {[%clk 0:01:03]} 0-1


[Site "https://www.chess.com"]

[Event "Titled Tuesday Blitz May 03 Early 2022"]
[White "Perez Molina, Robinson"]
[Black "Redor, Menandro"]
[WhiteFideId "3403882"]
[BlackFideId "5222010"]
[WhiteElo "2252"]
[BlackElo "1986"]
[Result "0-1"]
[Round "09"]
[TimeControl "180+1"]
[Date "2022.05.03"]
[WhiteClock "0:02:09"]
[BlackClock "0:00:40"]

1. Nf3 {[%clk 0:03:00]}  d5 {[%clk 0:01:44]} 2. d4 {[%clk 0:03:00]}  Nf6 {[%clk 0:01:43]} 3. c4 {[%clk 0:03:01]}  c6 {[%clk 0:01:40]} 4. Nc3 {[%clk 0:02:56]}  e6 {[%clk 0:01:38]} 5. Bg5 {[%clk 0:02:55]}  Be7 {[%clk 0:01:38]} 6. e3 {[%clk 0:02:55]}  O-O {[%clk 0:01:38]} 7. Qc2 {[%clk 0:02:56]}  Nbd7 {[%clk 0:01:38]} 8. O-O-O {[%clk 0:02:51]}  Re8 {[%clk 0:01:38]} 9. Bd3 {[%clk 0:02:46]}  dxc4 {[%clk 0:01:37]} 10. Bxc4 {[%clk 0:02:45]}  b5 {[%clk 0:01:37]} 11. Bd3 {[%clk 0:02:46]}  Bb7 {[%clk 0:01:37]} 12. Ne4 {[%clk 0:02:42]}  Nxe4 {[%clk 0:01:33]} 13. Bxe7 {[%clk 0:02:40]}  Qxe7 {[%clk 0:01:26]} 14. Bxe4 {[%clk 0:02:40]}  f5 {[%clk 0:01:26]} 15. Bd3 {[%clk 0:02:39]}  c5 {[%clk 0:01:26]} 16. Kb1 {[%clk 0:02:34]}  c4 {[%clk 0:01:25]} 17. Bxc4 {[%clk 0:02:33]}  bxc4 {[%clk 0:01:24]} 18. Qxc4 {[%clk 0:02:34]}  Rec8 {[%clk 0:01:20]} 19. Qa4 {[%clk 0:02:29]}  Be4+ {[%clk 0:01:08]} 20. Ka1 {[%clk 0:02:29]}  Bc2 {[%clk 0:01:08]} 21. Qa5 {[%clk 0:02:28]}  Bxd1 {[%clk 0:01:06]} 22. Rxd1 {[%clk 0:02:29]}  Rab8 {[%clk 0:01:03]} 23. a3 {[%clk 0:02:28]}  Rc2 {[%clk 0:00:59]} 24. Qxa7 {[%clk 0:02:22]}  Rcxb2 {[%clk 0:00:51]} 25. Ne5 {[%clk 0:02:22]}  R2b7 {[%clk 0:00:48]} 26. Qa5 {[%clk 0:02:09]}  Nxe5 {[%clk 0:00:43]} 27. dxe5 {[%clk 0:02:09]}  Ra7 {[%clk 0:00:40]} 0-1


[Site "https://www.chess.com"]

[Event "Titled Tuesday Blitz May 03 Early 2022"]
[White "Petrovic, Aleksa"]
[Black "Kanyamarala, Tarun"]
[WhiteFideId "967629"]
[BlackFideId "45004714"]
[WhiteElo "2198"]
[BlackElo "2177"]
[Result "0-1"]
[Round "09"]
[TimeControl "180+1"]
[Date "2022.05.03"]
[WhiteClock "0:00:02"]
[BlackClock "0:00:10"]

1. d4 {[%clk 0:03:00]}  Nf6 {[%clk 0:02:55]} 2. c4 {[%clk 0:02:58]}  c5 {[%clk 0:02:54]} 3. d5 {[%clk 0:02:58]}  e6 {[%clk 0:02:54]} 4. Nc3 {[%clk 0:02:57]}  a6 {[%clk 0:02:53]} 5. a4 {[%clk 0:02:51]}  g6 {[%clk 0:02:49]} 6. e4 {[%clk 0:02:42]}  d6 {[%clk 0:02:50]} 7. Nf3 {[%clk 0:02:37]}  Bg7 {[%clk 0:02:49]} 8. Nd2 {[%clk 0:02:35]}  O-O {[%clk 0:02:49]} 9. Be2 {[%clk 0:02:35]}  Kh8 {[%clk 0:02:42]} 10. O-O {[%clk 0:02:34]}  Ng8 {[%clk 0:02:41]} 11. Re1 {[%clk 0:02:05]}  exd5 {[%clk 0:02:36]} 12. cxd5 {[%clk 0:02:02]}  f5 {[%clk 0:02:37]} 13. exf5 {[%clk 0:01:53]}  Bxf5 {[%clk 0:02:36]} 14. Nc4 {[%clk 0:01:50]}  Bd4 {[%clk 0:02:14]} 15. Bf4 {[%clk 0:01:44]}  Bc2 {[%clk 0:02:07]} 16. Qd2 {[%clk 0:01:36]}  Bb3 {[%clk 0:01:59]} 17. Bg3 {[%clk 0:01:25]}  Bxc4 {[%clk 0:01:54]} 18. Bxc4 {[%clk 0:01:26]}  Qd7 {[%clk 0:01:48]} 19. Ne4 {[%clk 0:01:24]}  Qg7 {[%clk 0:01:38]} 20. Bxd6 {[%clk 0:01:13]}  Nd7 {[%clk 0:01:36]} 21. Bxf8 {[%clk 0:01:09]}  Rxf8 {[%clk 0:01:37]} 22. Rad1 {[%clk 0:01:03]}  Nh6 {[%clk 0:01:35]} 23. Re2 {[%clk 0:00:46]}  Ne5 {[%clk 0:01:21]} 24. Bb3 {[%clk 0:00:42]}  Nf5 {[%clk 0:01:16]} 25. d6 {[%clk 0:00:41]}  Ng4 {[%clk 0:01:14]} 26. Be6 {[%clk 0:00:38]}  Qe5 {[%clk 0:01:10]} 27. Ng3 {[%clk 0:00:20]}  Qxd6 {[%clk 0:00:41]} 28. Bxf5 {[%clk 0:00:18]}  gxf5 {[%clk 0:00:41]} 29. Qd3 {[%clk 0:00:16]}  Qh6 {[%clk 0:00:39]} 30. h3 {[%clk 0:00:15]}  Ne5 {[%clk 0:00:38]} 31. Qb3 {[%clk 0:00:12]}  Qg7 {[%clk 0:00:36]} 32. Kf1 {[%clk 0:00:10]}  f4 {[%clk 0:00:35]} 33. Nh5 {[%clk 0:00:07]}  Qf7 {[%clk 0:00:34]} 34. Qxf7 {[%clk 0:00:05]}  Rxf7 {[%clk 0:00:35]} 35. g4 {[%clk 0:00:06]}  fxg3 {[%clk 0:00:30]} 36. Nxg3 {[%clk 0:00:05]}  Rf3 {[%clk 0:00:29]} 37. Kg2 {[%clk 0:00:05]}  Rb3 {[%clk 0:00:21]} 38. f4 {[%clk 0:00:05]}  Ng6 {[%clk 0:00:20]} 39. Nh5 {[%clk 0:00:04]}  Nh4+ {[%clk 0:00:19]} 40. Kh2 {[%clk 0:00:04]}  Nf3+ {[%clk 0:00:17]} 41. Kh1 {[%clk 0:00:04]}  Kg8 {[%clk 0:00:14]} 42. f5 {[%clk 0:00:04]}  Kf7 {[%clk 0:00:14]} 43. f6 {[%clk 0:00:04]}  b5 {[%clk 0:00:13]} 44. Re7+ {[%clk 0:00:04]}  Kg6 {[%clk 0:00:12]} 45. f7 {[%clk 0:00:04]}  Bg7 {[%clk 0:00:11]} 46. Nxg7 {[%clk 0:00:03]}  Kxg7 {[%clk 0:00:11]} 47. f8=Q+ {[%clk 0:00:02]}  Kxf8 {[%clk 0:00:11]} 48. Ra7 {[%clk 0:00:03]}  Rxb2 {[%clk 0:00:11]} 49. Ra8+ {[%clk 0:00:02]}  Kf7 {[%clk 0:00:11]} 50. Ra7+ {[%clk 0:00:01]}  Kf6 {[%clk 0:00:11]} 51. Rxa6+ {[%clk 0:00:02]}  Kf5 {[%clk 0:00:11]} 52. Rd5+ {[%clk 0:00:02]}  Ke4 {[%clk 0:00:10]} 0-1


[Site "https://www.chess.com"]

[Event "Titled Tuesday Blitz May 03 Early 2022"]
[White "Pham, Tran Gia Phuc"]
[Black "Lehtosaari, Mauri"]
[WhiteFideId "12415669"]
[BlackFideId "501999"]
[WhiteElo "1789"]
[BlackElo "2537"]
[Result "1-0"]
[Round "09"]
[TimeControl "180+1"]
[Date "2022.05.03"]
[WhiteClock "0:00:19"]
[BlackClock "0:00:07"]

1. e4 {[%clk 0:01:47]}  d5 {[%clk 0:02:59]} 2. exd5 {[%clk 0:01:47]}  Qxd5 {[%clk 0:03:00]} 3. Nc3 {[%clk 0:01:46]}  Qe5+ {[%clk 0:03:00]} 4. Be2 {[%clk 0:01:46]}  c6 {[%clk 0:03:00]} 5. Nf3 {[%clk 0:01:46]}  Qc7 {[%clk 0:03:00]} 6. d4 {[%clk 0:01:46]}  Bf5 {[%clk 0:02:59]} 7. O-O {[%clk 0:01:46]}  e6 {[%clk 0:02:59]} 8. Nh4 {[%clk 0:01:44]}  Bg6 {[%clk 0:02:59]} 9. f4 {[%clk 0:01:36]}  Be7 {[%clk 0:02:55]} 10. Nf3 {[%clk 0:01:34]}  Nd7 {[%clk 0:02:49]} 11. Ne5 {[%clk 0:01:33]}  Nxe5 {[%clk 0:02:39]} 12. fxe5 {[%clk 0:01:33]}  O-O-O {[%clk 0:02:29]} 13. Be3 {[%clk 0:01:32]}  f5 {[%clk 0:02:28]} 14. Bc4 {[%clk 0:01:31]}  Bf7 {[%clk 0:02:27]} 15. Qe2 {[%clk 0:01:26]}  g5 {[%clk 0:02:23]} 16. Rad1 {[%clk 0:01:21]}  Nh6 {[%clk 0:02:20]} 17. h3 {[%clk 0:01:06]}  f4 {[%clk 0:02:17]} 18. Bf2 {[%clk 0:01:04]}  Nf5 {[%clk 0:02:17]} 19. Ne4 {[%clk 0:01:04]}  h5 {[%clk 0:02:03]} 20. Nf6 {[%clk 0:01:01]}  Bxf6 {[%clk 0:00:59]} 21. exf6 {[%clk 0:00:59]}  Qd6 {[%clk 0:00:56]} 22. Qe5 {[%clk 0:00:58]}  Rhe8 {[%clk 0:00:50]} 23. Qxd6 {[%clk 0:00:36]}  Rxd6 {[%clk 0:00:43]} 24. Rfe1 {[%clk 0:00:35]}  Kc7 {[%clk 0:00:41]} 25. Re5 {[%clk 0:00:35]}  g4 {[%clk 0:00:34]} 26. Rxf5 {[%clk 0:00:30]}  exf5 {[%clk 0:00:30]} 27. Bxf7 {[%clk 0:00:30]}  Re2 {[%clk 0:00:30]} 28. Bh4 {[%clk 0:00:30]}  Rxc2 {[%clk 0:00:26]} 29. Bxh5 {[%clk 0:00:30]}  f3 {[%clk 0:00:17]} 30. f7 {[%clk 0:00:29]}  Rxg2+ {[%clk 0:00:16]} 31. Kh1 {[%clk 0:00:29]}  g3 {[%clk 0:00:13]} 32. Bxg3 {[%clk 0:00:26]}  Rxg3 {[%clk 0:00:13]} 33. f8=Q {[%clk 0:00:26]}  Rxh3+ {[%clk 0:00:14]} 34. Kg1 {[%clk 0:00:26]}  Rxh5 {[%clk 0:00:03]} 35. Qe7+ {[%clk 0:00:26]}  Rd7 {[%clk 0:00:02]} 36. Qe5+ {[%clk 0:00:26]}  Kb6 {[%clk 0:00:02]} 37. Kf2 {[%clk 0:00:26]}  Rhh7 {[%clk 0:00:01]} 38. Kxf3 {[%clk 0:00:25]}  a6 {[%clk 0:00:02]} 39. Qc5+ {[%clk 0:00:25]}  Kc7 {[%clk 0:00:02]} 40. d5 {[%clk 0:00:25]}  Rhf7 {[%clk 0:00:03]} 41. d6+ {[%clk 0:00:24]}  Kd8 {[%clk 0:00:03]} 42. Qa7 {[%clk 0:00:23]}  Ke8 {[%clk 0:00:03]} 43. Re1+ {[%clk 0:00:20]}  Kf8 {[%clk 0:00:03]} 44. Qb8+ {[%clk 0:00:21]}  Kg7 {[%clk 0:00:04]} 45. Rg1+ {[%clk 0:00:20]}  Kf6 {[%clk 0:00:05]} 46. Qh8+ {[%clk 0:00:19]}  Ke6 {[%clk 0:00:06]} 47. Re1+ {[%clk 0:00:19]}  Kxd6 {[%clk 0:00:07]} 48. Qe5# {[%clk 0:00:19]} 1-0


[Site "https://www.chess.com"]

[Event "Titled Tuesday Blitz May 03 Early 2022"]
[White "Popadic, Dragan"]
[Black "Legenia, Artem"]
[WhiteFideId "913650"]
[BlackFideId "14136945"]
[WhiteElo "2203"]
[BlackElo "1936"]
[Result "1-0"]
[Round "09"]
[TimeControl "180+1"]
[Date "2022.05.03"]
[WhiteClock "0:01:26"]
[BlackClock "0:01:09"]

1. e4 {[%clk 0:03:00]}  d5 {[%clk 0:02:58]} 2. exd5 {[%clk 0:02:59]}  Qxd5 {[%clk 0:02:59]} 3. Nc3 {[%clk 0:02:59]}  Qa5 {[%clk 0:02:59]} 4. d4 {[%clk 0:02:59]}  Nf6 {[%clk 0:02:58]} 5. Nf3 {[%clk 0:02:59]}  Bg4 {[%clk 0:02:57]} 6. h3 {[%clk 0:02:59]}  Bxf3 {[%clk 0:02:43]} 7. Qxf3 {[%clk 0:02:58]}  c6 {[%clk 0:02:43]} 8. Bd2 {[%clk 0:02:47]}  Qc7 {[%clk 0:02:41]} 9. O-O-O {[%clk 0:02:46]}  e6 {[%clk 0:02:41]} 10. Bd3 {[%clk 0:02:43]}  Nbd7 {[%clk 0:02:41]} 11. g4 {[%clk 0:02:42]}  Bb4 {[%clk 0:02:40]} 12. g5 {[%clk 0:02:39]}  Nd5 {[%clk 0:02:41]} 13. Ne4 {[%clk 0:02:23]}  Bxd2+ {[%clk 0:02:38]} 14. Rxd2 {[%clk 0:02:23]}  N7b6 {[%clk 0:02:23]} 15. a3 {[%clk 0:02:13]}  O-O-O {[%clk 0:02:19]} 16. Nc5 {[%clk 0:01:55]}  Qf4 {[%clk 0:02:15]} 17. Qg2 {[%clk 0:01:55]}  Ne7 {[%clk 0:02:09]} 18. c3 {[%clk 0:01:51]}  Nf5 {[%clk 0:01:55]} 19. Kc2 {[%clk 0:01:44]}  Nh4 {[%clk 0:01:45]} 20. Qg3 {[%clk 0:01:35]}  Qxg3 {[%clk 0:01:39]} 21. fxg3 {[%clk 0:01:36]}  Nf3 {[%clk 0:01:38]} 22. Rf2 {[%clk 0:01:28]}  Nxg5 {[%clk 0:01:16]} 23. h4 {[%clk 0:01:28]}  h6 {[%clk 0:01:10]} 24. hxg5 {[%clk 0:01:27]}  hxg5 {[%clk 0:01:10]} 25. Rxh8 {[%clk 0:01:26]}  Rxh8 {[%clk 0:01:09]} 26. Rxf7 {[%clk 0:01:26]} 1-0


[Site "https://www.chess.com"]